bitfinex/quotes_ETHUSD_20241129
["timestamp","ask_amount","ask_price","bid_price","bid_amount"]
[1732880537368,0.12868772,3595.9,3595.8,2.78101]
[1732880537712,0.12868772,3595.9,3595.8,2.8714911]
[1732880539229,0.12879348,3595.9,3595.8,2.8714911]
[1732880539579,0.12879348,3596.1,3595.8,3.6964911]
[1732880539814,3.0,3596.4,3595.8,3.6964911]
[1732880539815,0.12879348,3596.0,3595.9,2.78094]
[1732880540015,2.78035,3596.7,3596.1,2.78078]
[1732880540016,0.12879348,3596.3,3596.1,2.78078]
[1732880540219,0.12879348,3596.2,3596.1,2.78078]
[1732880540377,0.12879348,3596.2,3595.9,2.78094]
[1732880540579,2.78035,3596.7,3596.1,2.78079]
[1732880540801,2.78048,3596.5,3595.9,2.78094]
[1732880541024,0.12886034,3596.4,3595.9,2.78094]
[1732880541225,0.12886034,3596.3,3595.9,2.78094]
[1732880541388,0.12886034,3596.2,3595.9,2.78094]
[1732880541726,0.12886034,3596.2,3595.8,0.825]
[1732880541727,0.12886034,3596.1,3596.0,2.78085]
[1732880541875,0.12886034,3596.5,3596.0,2.78085]
[1732880542077,0.12886034,3596.4,3596.0,2.78085]
[1732880542286,0.12886034,3596.3,3595.9,2.78092]
[1732880542486,0.12886034,3596.2,3595.9,2.78092]
[1732880542788,0.12886034,3596.1,3595.9,2.78092]
[1732880542982,0.12886034,3596.4,3595.9,2.78092]
[1732880543225,2.90950034,3596.3,3595.8,3.606]
[1732880543436,0.12886034,3596.2,3595.9,0.8186]
[1732880543591,0.12886034,3596.1,3595.9,0.8186]
[1732880543790,0.12886034,3596.0,3595.9,0.8186]
[1732880543991,0.12886034,3596.3,3595.9,0.8186]
[1732880544213,0.12886034,3596.2,3595.9,0.8186]
[1732880544423,0.12886034,3596.1,3596.0,2.78082]
[1732880544732,0.12886034,3596.5,3596.0,2.78082]
[1732880544890,0.12886034,3596.4,3596.0,2.78082]
[1732880545088,2.78043,3596.6,3596.0,2.78082]
[1732880545089,0.12886034,3596.3,3596.0,2.78082]
[1732880545435,0.12886034,3596.2,3596.0,2.78082]
[1732880545728,0.12886034,3596.1,3595.9,0.8186]
[1732880545883,2.78043,3596.6,3595.9,0.8186]
[1732880545884,0.12886034,3596.0,3595.9,0.8186]
[1732880546816,0.12886034,3596.0,3595.9,3.59954]
[1732880547005,0.12886034,3596.0,3595.9,0.8186]
[1732880548332,0.12886034,3596.0,3595.9,3.59954]
[1732880548709,0.12886034,3596.0,3595.6,2.78112]
[1732880549431,0.12886034,3596.0,3595.7,0.09041414]
[1732880549816,3.55557,3596.3,3595.7,0.09041414]
[1732880550013,3.55557,3596.3,3595.8,2.78101]
[1732880550423,3.55557,3596.3,3595.9,0.09029562]
[1732880551126,2.78071,3596.2,3595.9,0.09029562]
[1732880551307,3.55557,3596.3,3595.6,2.78111]
[1732880551506,3.55557,3596.3,3595.7,0.09041414]
[1732880551937,2.78071,3596.2,3595.7,0.09041414]
[1732880552542,2.78071,3596.2,3595.8,0.7669]
[1732880552726,2.78071,3596.2,3595.9,0.09029562]
[1732880553214,2.78064,3596.3,3595.9,0.09029562]
[1732880553607,0.12899715,3596.2,3595.9,0.09029562]
[1732880553826,0.12899715,3596.1,3595.9,0.09029562]
[1732880554051,0.12899715,3596.0,3595.9,0.09029562]
[1732880555142,2.78061,3596.4,3595.9,0.09029562]
[1732880555998,0.12899924,3596.3,3595.9,0.09029562]
[1732880556284,0.25800214,3596.3,3595.9,2.87123562]
[1732880556472,0.1290152,3596.2,3595.9,0.09029562]
[1732880556675,0.1290152,3596.1,3595.9,0.09029562]
[1732880557186,0.1290152,3596.0,3595.9,0.09029562]
[1732880557479,0.1290152,3596.0,3595.8,3.5479]
[1732880557687,2.9096829,3596.3,3595.8,3.5479]
[1732880557688,0.1290152,3595.9,3595.8,0.7669]
[1732880557843,2.9096829,3596.3,3595.8,0.7669]
[1732880561183,2.9096829,3596.3,3595.8,3.54791]
[1732880561483,0.1290029,3596.3,3595.8,3.54791]
[1732880562503,0.1290029,3596.3,3596.2,1.47151894]
[1732880562644,0.1290029,3596.3,3596.2,5.03782894]
[1732880562853,2.77983,3597.4,3596.6,0.7856]
[1732880563105,2.78,3597.2,3596.6,3.56599]
[1732880563387,2.77978,3597.4,3596.8,2.78024]
[1732880563685,0.634582,3597.3,3596.8,2.78024]
[1732880564046,3.634582,3597.3,3596.8,2.78024]
[1732880564495,3.634582,3597.3,3596.9,0.08965976]
[1732880566300,0.7864,3597.6,3596.9,0.08965976]
[1732880566451,3.56607,3597.6,3597.0,2.78004]
[1732880566801,3.56607,3597.6,3597.1,0.08954132]
[1732880567303,2.77967,3597.6,3597.2,0.7991]
[1732880567795,2.77967,3597.6,3597.3,0.0894229]
[1732880568096,3.47196005,3597.6,3597.3,0.0894229]
[1732880569996,2.77971,3597.5,3597.3,0.0894229]
[1732880570200,2.77971,3597.5,3597.0,2.78004]
[1732880570404,2.77967,3597.6,3597.1,0.08954132]
[1732880570715,2.77972,3597.5,3597.1,0.08954132]
[1732880571174,2.77984,3597.4,3597.2,0.08948211]
[1732880571379,2.77989,3597.3,3596.9,0.766]
[1732880571566,2.77989,3597.3,3597.0,0.08960054]
[1732880571910,2.77989,3597.3,3596.8,0.8021]
[1732880572077,2.77989,3597.3,3597.1,0.08954132]
[1732880572282,2.77989,3597.3,3596.8,0.8021]
[1732880572477,2.77989,3597.3,3597.2,0.08948211]
[1732880572803,4.438049,3597.5,3597.2,0.08948211]
[1732880573010,2.77978,3597.4,3596.8,3.58234]
[1732880573194,2.77986,3597.3,3596.9,0.08957129]
[1732880574085,2.77994,3597.2,3596.9,0.08957129]
[1732880574592,4.438049,3597.5,3596.8,2.78017]
[1732880574898,3.58211,3597.5,3596.9,2.86973129]
[1732880575109,3.61075,3597.7,3597.1,0.7761]
[1732880575410,3.61075,3597.7,3597.2,0.08939364]
[1732880575565,2.77963,3597.6,3597.2,0.08939364]
[1732880575970,3.0,3598.0,3597.2,0.08939364]
[1732880575971,5.77937,3598.0,3597.2,0.08939364]
[1732880576164,5.77937,3598.0,3597.4,2.77975]
[1732880576395,5.77937,3598.0,3597.5,0.08911886]
[1732880576590,2.77954,3597.8,3597.5,0.08911886]
[1732880576864,2.77954,3597.8,3597.2,2.77989]
[1732880577081,2.77954,3597.8,3597.6,0.08905966]
[1732880577279,2.77954,3597.8,3597.1,3.5561]
[1732880577280,2.77955,3597.7,3597.1,3.5561]
[1732880577504,3.55,3597.9,3597.7,0.08900047]
[1732880577722,2.77947,3597.8,3597.1,3.55611]
[1732880577933,5.77946,3597.9,3597.3,2.77985]
[1732880578227,5.77946,3597.9,3597.4,0.08917806]
[1732880578535,2.77952,3597.8,3597.4,0.08917806]
[1732880578718,2.77962,3597.7,3597.4,0.08917806]
[1732880579019,2.7797,3597.6,3597.5,0.08911886]
[1732880579230,2.7797,3597.6,3597.1,0.7761]
[1732880579383,2.7797,3597.6,3597.5,0.08911886]
[1732880579584,2.7797,3597.6,3597.1,3.55611]
[1732880579830,2.7797,3597.6,3597.2,0.08929648]
[1732880580633,2.77986,3597.3,3597.2,0.08929648]
[1732880580984,2.77986,3597.3,3596.8,0.7732]
[1732880581198,2.77986,3597.3,3596.9,0.08944802]
[1732880582102,0.12873516,3597.2,3596.9,0.08944802]
[1732880582289,0.12873516,3597.1,3596.8,3.55342]
[1732880582487,0.12873516,3597.3,3596.8,3.55342]
[1732880582831,0.12873516,3597.2,3596.9,0.08944802]
[1732880583000,0.12873516,3597.1,3596.9,0.08944802]
[1732880583208,0.12873516,3597.0,3596.9,0.08944802]
[1732880583513,2.90876516,3597.1,3596.9,0.08944802]
[1732880583718,0.12873516,3597.0,3596.9,0.08944802]
[1732880584330,2.77992,3597.3,3596.9,0.08944802]
[1732880584331,2.77991,3597.3,3596.9,0.08944802]
[1732880585689,2.77973,3597.5,3596.9,0.08944802]
[1732880585936,2.77987,3597.3,3596.9,0.08944802]
[1732880586430,2.77973,3597.5,3596.9,0.08944802]
[1732880586728,2.77942,3597.9,3597.2,2.77989]
[1732880587098,2.77942,3597.9,3597.3,0.0892097]
[1732880587304,3.85161789,3597.9,3597.3,0.0892097]
[1732880588634,1.47151894,3598.1,3597.3,2.8690297]
[1732880588850,3.0,3598.0,3597.4,0.7505]
[1732880589056,2.77934,3598.0,3597.4,3.53027]
[1732880589219,2.77934,3598.0,3597.4,0.7505]
[1732880589411,2.7794,3597.9,3597.5,0.0890913]
[1732880590322,1.47151894,3598.1,3597.5,0.0890913]
[1732880590323,7.25081894,3598.1,3597.5,0.0890913]
[1732880590620,5.54370083,3598.1,3597.5,0.0890913]
[1732880590817,2.77933,3598.0,3597.5,0.0890913]
[1732880592032,2.77951,3597.8,3597.5,0.0890913]
[1732880592232,2.77948,3597.8,3597.5,0.0890913]
[1732880592542,2.77933,3598.0,3597.5,0.0890913]
[1732880592742,2.77949,3597.8,3597.5,0.0890913]
[1732880592944,3.0,3598.1,3597.5,0.0890913]
[1732880593147,2.77934,3598.0,3597.4,3.53028]
[1732880593345,2.77934,3598.0,3597.5,0.0890913]
[1732880593821,2.77941,3597.9,3597.5,0.0890913]
[1732880594020,3.20450289,3597.9,3597.2,3.57041]
[1732880594227,2.77941,3597.9,3597.2,3.57041]
[1732880594446,2.77941,3597.9,3597.3,0.0892097]
[1732880594850,2.77947,3597.8,3597.3,0.0892097]
[1732880595633,1.47151894,3598.2,3597.3,2.8690297]
[1732880595838,2.77941,3597.9,3597.3,2.8690297]
[1732880597864,3.0,3598.0,3597.4,2.77975]
[1732880598373,2.77936,3598.0,3597.5,0.0890913]
[1732880598664,0.6918,3598.3,3597.7,0.8205]
[1732880598665,2.77913,3598.3,3597.7,0.8205]
[1732880599034,2.77913,3598.3,3597.8,0.08891371]
[1732880599219,2.30903501,3598.5,3597.8,0.08891371]
[1732880599428,2.77909,3598.3,3597.8,0.08891371]
[1732880599664,2.77927,3598.1,3597.8,0.08891371]
[1732880599959,2.77935,3598.0,3597.9,0.08885452]
[1732880600164,2.77927,3598.1,3597.9,0.8136]
[1732880600463,2.77927,3598.1,3598.0,0.08879534]
[1732880601323,2.77927,3598.1,3597.7,0.8253]
[1732880601544,2.77932,3598.0,3597.8,0.08881804]
[1732880602071,2.77957,3597.7,3597.3,0.8253]
[1732880602440,2.77965,3597.6,3597.3,0.8253]
[1732880602965,2.77973,3597.5,3596.9,0.7731]
[1732880603126,2.78003,3597.1,3596.9,0.7731]
[1732880603323,2.78005,3597.1,3596.9,0.7731]
[1732880603623,2.78009,3597.0,3596.9,0.7731]
[1732880603834,2.78005,3597.1,3596.9,0.7731]
[1732880605369,2.78009,3597.0,3596.9,0.7731]
[1732880605665,2.77995,3597.2,3596.9,0.7731]
[1732880605878,2.78024,3596.8,3596.7,0.82546774]
[1732880606176,2.78024,3596.8,3596.7,0.03586774]
[1732880606965,2.78009,3597.0,3596.7,0.03586774]
[1732880607172,2.78018,3596.9,3596.7,0.03586774]
[1732880607478,2.78015,3597.0,3596.7,0.03586774]
[1732880608560,3.46873812,3598.0,3596.7,0.03586774]
[1732880608561,0.68936812,3598.0,3596.7,0.03586774]
[1732880608780,2.77961,3597.7,3597.1,0.766]
[1732880608984,2.77955,3597.7,3597.1,0.766]
[1732880609268,2.77968,3597.6,3597.2,0.08927763]
[1732880609879,2.77971,3597.5,3597.2,0.08927763]
[1732880611261,2.77983,3597.4,3597.2,0.08927763]
[1732880611509,2.77986,3597.3,3597.2,0.08927763]
[1732880612101,2.77995,3597.2,3596.8,0.8238]
[1732880612627,2.78002,3597.1,3596.8,0.8238]
[1732880612833,2.78014,3597.0,3596.8,0.8238]
[1732880613523,2.77993,3597.2,3596.8,0.8238]
[1732880614136,2.78001,3597.1,3596.8,0.8238]
[1732880614492,2.78021,3596.9,3596.7,0.03586774]
[1732880615197,2.78004,3597.1,3596.7,0.03586774]
[1732880615646,2.77996,3597.2,3596.7,0.03586774]
[1732880617852,2.77979,3597.4,3596.9,2.78017]
[1732880618137,2.77979,3597.4,3597.0,0.8047]
[1732880618635,2.77988,3597.3,3597.0,0.8047]
[1732880619027,2.77997,3597.2,3597.0,0.8047]
[1732880619540,2.78001,3597.1,3597.0,0.8047]
[1732880619703,2.78001,3597.1,3596.7,0.79966774]
[1732880620804,2.77988,3597.3,3596.7,0.79966774]
[1732880621004,2.77988,3597.3,3596.7,3.57996774]
[1732880621540,2.77961,3597.7,3597.2,0.8279]
[1732880621742,2.77961,3597.7,3597.2,3.60783]
[1732880621950,2.77968,3597.6,3597.2,0.8279]
[1732880622322,2.77961,3597.7,3597.2,0.8279]
[1732880622653,2.77975,3597.5,3597.2,0.8279]
[1732880622955,2.77992,3597.3,3596.8,0.8158]
[1732880623242,2.7801,3597.0,3596.8,0.8158]
[1732880623548,2.77994,3597.2,3596.7,0.03586774]
[1732880623743,2.78013,3597.0,3596.7,0.03586774]
[1732880624519,2.78013,3597.0,3596.8,0.08951014]
[1732880624815,2.78017,3596.9,3596.7,0.03586774]
[1732880625023,2.78017,3596.9,3596.8,0.08951014]
[1732880625227,2.78017,3596.9,3596.7,0.03586774]
[1732880625419,2.78017,3596.9,3596.8,0.08951014]
[1732880625626,2.78017,3596.9,3596.7,0.03586774]
[1732880625814,2.78017,3596.9,3596.8,0.08951014]
[1732880626044,2.78024,3596.8,3596.7,0.03586774]
[1732880626213,13.35129,3596.8,3596.7,0.12549076]
[1732880626450,53.238676,3596.8,3596.7,0.03586774]
[1732880626649,49.289909,3596.8,3596.7,0.03586774]
[1732880627754,50.76142794,3596.8,3596.7,0.03586774]
[1732880627951,53.48726341,3596.8,3596.7,0.03586774]
[1732880629986,52.62299041,3596.8,3596.7,0.03586774]
[1732880630721,2.78024,3596.8,3596.7,0.03586774]
[1732880631226,2.78024,3596.8,3596.7,0.12549076]
[1732880631635,2.77939,3597.9,3596.7,0.12549076]
[1732880631785,1.47151894,3597.4,3596.7,0.12549076]
[1732880631991,2.78019,3596.9,3596.7,0.12549076]
[1732880632224,2.78005,3597.1,3596.7,0.12549076]
[1732880632425,2.77924,3598.1,3597.5,0.7516]
[1732880632597,2.77925,3598.1,3597.6,0.08909012]
[1732880632808,2.77942,3597.9,3597.6,0.08909012]
[1732880633024,0.277925,3598.0,3597.6,0.08909012]
[1732880633324,3.057295,3598.0,3597.6,0.08909012]
[1732880633639,0.55,3597.9,3597.6,0.08909012]
[1732880633789,3.32946,3597.9,3597.6,0.08909012]
[1732880634185,2.77947,3597.8,3597.6,0.08909012]
[1732880634385,0.55,3597.7,3597.6,0.08909012]
[1732880635532,0.55,3597.8,3597.6,0.08909012]
[1732880635822,0.55,3598.1,3597.6,0.08909012]
[1732880636447,2.77924,3598.1,3597.6,0.08909012]
[1732880636610,0.55,3598.0,3597.6,0.08909012]
[1732880636993,0.55,3598.2,3597.6,2.86870012]
[1732880637606,0.55,3598.4,3597.8,2.77941]
[1732880637813,2.77906,3598.4,3597.9,0.08886471]
[1732880638019,2.77906,3598.4,3597.7,2.77955]
[1732880638227,2.77906,3598.4,3597.8,0.0889239]
[1732880638432,2.77895,3598.5,3597.8,0.0889239]
[1732880638640,2.77878,3598.7,3597.9,2.77939]
[1732880638951,2.77878,3598.7,3598.2,0.7911]
[1732880639100,2.77888,3598.6,3598.2,0.7911]
[1732880639305,2.77871,3598.8,3598.3,0.08862799]
[1732880640543,0.55,3598.5,3598.3,0.08862799]
[1732880641643,0.55,3598.7,3598.3,0.08862799]
[1732880642528,0.55,3598.5,3598.3,0.08862799]
[1732880643044,3.32901,3598.4,3598.3,0.08862799]
[1732880643343,0.55,3598.3,3597.9,0.7631]
[1732880644449,3.32909,3598.3,3597.9,0.7631]
[1732880645337,0.55,3598.1,3597.9,0.7631]
[1732880645544,0.55,3598.3,3597.9,0.7631]
[1732880645716,3.3291,3598.3,3597.9,0.7631]
[1732880645927,2.77932,3598.0,3597.5,0.8049]
[1732880646108,3.3294,3597.9,3597.5,1.441359]
[1732880646311,0.55,3597.7,3597.5,0.8049]
[1732880647845,0.55,3597.9,3597.5,0.8049]
[1732880648141,3.32944,3597.9,3597.5,0.8049]
[1732880648707,3.32944,3597.9,3597.6,0.08592363]
[1732880649141,0.55,3598.0,3597.6,0.08592363]
[1732880649340,0.55,3598.3,3597.6,0.08592363]
[1732880649505,0.55,3598.0,3597.6,0.08592363]
[1732880649709,0.55,3598.0,3597.5,3.58459]
[1732880649923,0.55,3598.0,3597.7,0.08597323]
[1732880650157,3.32934,3598.0,3597.6,0.08603243]
[1732880650311,3.32934,3598.0,3597.8,0.08591404]
[1732880650646,3.32934,3598.0,3597.7,0.08597323]
[1732880650952,0.55,3598.1,3597.8,0.08591404]
[1732880651112,0.55,3598.3,3597.8,0.08591404]
[1732880651306,0.55,3598.3,3597.5,3.58458]
[1732880651307,3.32933,3598.0,3597.5,3.58458]
[1732880651544,3.32933,3598.0,3597.9,0.08585485]
[1732880651706,3.32933,3598.0,3597.5,0.8049]
[1732880652250,3.32933,3598.0,3597.6,0.08603243]
[1732880652657,0.55,3597.8,3597.6,0.08603243]
[1732880652872,2.77955,3597.7,3597.6,0.08603243]
[1732880653041,3.32955,3597.7,3597.6,0.08603243]
[1732880653469,3.32966,3597.6,3597.2,0.781]
[1732880653669,2.77985,3597.4,3597.2,0.781]
[1732880653961,2.77985,3597.4,3596.8,2.78023]
[1732880653962,2.77983,3597.4,3596.9,0.828]
[1732880654265,0.55,3597.3,3597.0,0.07804002]
[1732880654470,0.55,3597.7,3597.1,2.77996]
[1732880654766,3.4712,3597.9,3597.2,0.0779216]
[1732880654767,3.32964,3597.6,3597.2,0.0779216]
[1732880655979,2.77984,3597.4,3597.2,0.0779216]
[1732880656184,3.32986,3597.3,3596.9,0.828]
[1732880656335,2.77999,3597.2,3596.9,0.828]
[1732880656535,0.55,3597.1,3596.7,0.78686774]
[1732880656737,0.55,3597.0,3596.7,0.03586774]
[1732880656982,3.33014,3597.0,3596.7,0.03586774]
[1732880657139,0.55,3596.8,3596.7,0.03586774]
[1732880657939,2.78024,3596.8,3596.7,0.03586774]
[1732880658179,3.33024,3596.8,3596.7,0.03586774]
[1732880662275,2.78014,3597.0,3596.7,0.03586774]
[1732880662453,3.33017,3596.9,3596.7,0.03586774]
[1732880662985,0.55,3596.9,3596.7,0.03586774]
[1732880663701,3.33024,3596.8,3596.7,0.03586774]
[1732880667352,0.55,3596.9,3596.8,0.7874]
[1732880668221,0.55,3597.1,3596.8,0.7874]
[1732880668511,0.6918,3597.7,3596.8,1.14777177]
[1732880668714,2.77982,3597.4,3596.8,1.14777177]
[1732880669274,2.78,3597.2,3596.9,0.07555852]
[1732880670119,2.78009,3597.0,3596.9,0.07555852]
[1732880670420,3.33009,3597.0,3596.9,0.07555852]
[1732880670622,3.33024,3596.8,3596.7,0.03586774]
[1732880671413,3.33024,3596.8,3596.7,0.11154471]
[1732880671614,3.33024,3596.8,3596.7,0.03586774]
[1732880671818,3.33024,3596.8,3596.7,0.11154471]
[1732880671995,3.33024,3596.8,3596.7,0.03586774]
[1732880672195,3.33024,3596.8,3596.7,0.11154471]
[1732880673310,3.941273,3596.8,3596.7,0.11154471]
[1732880673480,4.633073,3596.8,3596.7,0.11154471]
[1732880673677,4.633073,3596.8,3596.7,0.03586774]
[1732880674421,3.33024,3596.8,3596.7,0.03586774]
[1732880675116,3.33024,3596.8,3596.7,0.1116731]
[1732880683453,3.33024,3596.8,3596.7,0.03586774]
[1732880683622,3.33024,3596.8,3596.7,0.10926567]
[1732880683957,2.77953,3597.8,3596.9,2.78017]
[1732880684181,2.77953,3597.8,3597.2,0.8005]
[1732880684182,2.7796,3597.7,3597.2,0.8005]
[1732880684603,3.04317934,3598.5,3597.0,0.36492575]
[1732880684604,0.6918,3598.6,3597.3,0.07302418]
[1732880684932,2.77953,3597.8,3597.5,0.8005]
[1732880685340,2.7796,3597.7,3597.6,0.07276991]
[1732880686033,0.6918,3598.0,3596.7,2.81612774]
[1732880686034,2.77978,3597.4,3596.8,0.7863]
[1732880686209,2.77998,3597.2,3596.9,0.36024277]
[1732880686414,2.77998,3597.2,3596.9,0.07318437]
[1732880687853,3.32991,3597.3,3596.9,0.07318437]
[1732880688721,0.55,3597.3,3596.9,0.07318437]
[1732880689046,3.32976,3597.5,3596.9,0.07318437]
[1732880689657,0.55,3597.2,3596.9,0.07318437]
[1732880689954,0.55,3597.2,3596.8,0.7863]
[1732880690156,0.55,3597.5,3596.8,4.20756576]
[1732880690376,0.55,3597.5,3596.9,0.07307787]
[1732880690863,0.55,3597.5,3597.1,0.8139]
[1732880691161,3.32972,3597.5,3597.2,0.07290022]
[1732880692344,2.77979,3597.4,3597.2,0.07290022]
[1732880692520,3.32986,3597.3,3597.2,0.07290022]
[1732880692726,2.78001,3597.2,3596.8,0.7621]
[1732880693177,2.78002,3597.1,3596.9,0.07307787]
[1732880693667,0.55,3597.3,3596.9,0.07307787]
[1732880694440,3.33009,3597.0,3596.9,0.07307787]
[1732880694830,3.33017,3596.9,3596.8,0.7621]
[1732880695260,2.78024,3596.8,3596.7,0.03586774]
[1732880695830,3.33024,3596.8,3596.7,0.03586774]
[1732880697344,6.37341934,3596.8,3596.7,0.03586774]
[1732880697660,43.01412927,3596.8,3596.7,0.03586774]
[1732880698779,26.52221427,3596.8,3596.7,0.03586774]
[1732880698931,19.98235127,3596.8,3596.7,0.03586774]
[1732880700346,17.77227027,3596.8,3596.7,0.03586774]
[1732880700542,14.72909093,3596.8,3596.7,0.03586774]
[1732880700747,16.97488127,3596.8,3596.7,0.03586774]
[1732880702260,14.07601827,3596.8,3596.7,0.03586774]
[1732880702559,10.63596627,3596.8,3596.7,0.03586774]
[1732880702880,19.34579627,3596.8,3596.7,0.03586774]
[1732880703444,16.30261693,3596.8,3596.7,0.03586774]
[1732880703669,19.34579627,3596.8,3596.7,0.03586774]
[1732880704599,8.298458,3596.8,3596.7,0.03586774]
[1732880704766,6.33024,3596.8,3596.7,0.03586774]
[1732880705679,3.0,3596.8,3596.7,0.03586774]
[1732880705880,2.78024,3596.8,3596.7,0.03586774]
[1732880706156,5.78024,3596.8,3596.7,0.03586774]
[1732880706361,5.78024,3596.8,3596.7,0.10670351]
[1732880706692,9.67945234,3596.8,3596.7,0.03586774]
[1732880706863,9.67945234,3596.8,3596.7,0.10670351]
[1732880707064,10.22945234,3596.8,3596.7,0.03586774]
[1732880708595,10.92125234,3596.8,3596.7,0.03586774]
[1732880709271,10.22945234,3596.8,3596.7,0.03586774]
[1732880711259,7.186273,3596.8,3596.7,0.03586774]
[1732880711461,6.33024,3596.8,3596.7,0.03586774]
[1732880711989,6.33024,3596.8,3596.7,0.10682081]
[1732880712165,7.80163002,3596.8,3596.7,0.03586774]
[1732880712374,7.80163002,3596.8,3596.7,0.10682081]
[1732880712599,7.80163002,3596.8,3596.7,0.03586774]
[1732880712775,7.80163002,3596.8,3596.7,0.10682081]
[1732880713104,7.80163002,3596.8,3596.7,0.03586774]
[1732880713698,3.0,3596.9,3596.7,0.10682081]
[1732880713996,0.6918,3597.5,3596.7,0.10682081]
[1732880713997,1.47139002,3597.4,3596.8,0.07089384]
[1732880714204,2.78017,3596.9,3596.8,0.07089384]
[1732880714702,2.78024,3596.8,3596.7,0.03586774]
[1732880715001,4.25163002,3596.8,3596.7,0.03586774]
[1732880715483,4.80163002,3596.8,3596.7,0.03586774]
[1732880717395,0.55,3596.8,3596.7,0.03586774]
[1732880717700,0.55,3597.0,3596.8,0.8164]
[1732880718417,1.47139002,3597.1,3596.9,0.36326577]
[1732880718577,5.77986,3597.3,3596.9,0.36326577]
[1732880718766,2.77981,3597.4,3597.0,0.8007]
[1732880718967,1.47139002,3597.5,3597.0,0.8007]
[1732880719188,3.0,3597.4,3597.0,0.8007]
[1732880719390,2.7796,3597.7,3597.1,0.7578]
[1732880719611,1.47139002,3597.6,3597.1,3.53781]
[1732880720104,2.7796,3597.7,3597.1,0.7578]
[1732880720269,0.12721767,3597.6,3597.1,3.53781]
[1732880720469,0.12721767,3597.5,3597.1,3.53781]
[1732880720670,0.12721767,3597.4,3597.2,2.77987]
[1732880720909,2.77943,3597.9,3597.3,0.7578]
[1732880721096,0.12720152,3597.8,3597.3,0.7578]
[1732880721294,2.77943,3597.9,3597.3,0.7855954]
[1732880721866,2.77943,3597.9,3597.3,0.7578]
[1732880722076,2.77943,3597.9,3597.3,1.111567]
[1732880722301,3.55,3598.0,3597.3,1.111567]
[1732880722505,6.32934,3598.0,3597.4,2.77977]
[1732880722893,6.32934,3598.0,3597.5,0.07040729]
[1732880723082,0.55,3597.8,3597.5,0.07040729]
[1732880723284,0.55,3597.8,3597.5,2.85006729]
[1732880723485,3.55,3598.0,3597.5,2.77966]
[1732880723690,3.55,3598.0,3597.6,0.07034809]
[1732880724095,0.55,3597.8,3597.6,0.07034809]
[1732880724291,0.55,3597.8,3597.3,3.53763]
[1732880724910,0.55,3597.8,3597.4,0.07046649]
[1732880725380,0.55,3597.6,3597.4,0.07046649]
[1732880725573,2.77963,3597.6,3597.4,0.07046649]
[1732880725792,0.55,3597.5,3597.4,0.07046649]
[1732880726014,3.3297,3597.5,3597.4,0.07046649]
[1732880726226,3.940632,3597.5,3597.4,0.07046649]
[1732880726403,0.55,3597.3,3597.0,0.8104]
[1732880727581,3.32974,3597.5,3597.0,0.8104]
[1732880728822,3.32978,3597.5,3597.0,0.8104]
[1732880729004,0.55,3597.3,3597.0,0.6783]
[1732880729186,3.32991,3597.3,3597.0,0.6783]
[1732880729387,4.24505161,3597.3,3597.1,0.07060456]
[1732880730391,4.24505161,3597.3,3597.0,0.6783]
[1732880731222,1.46514161,3597.3,3597.0,0.6783]
[1732880731423,0.55,3597.4,3597.3,2.77986]
[1732880731721,2.77925,3598.1,3597.4,2.77972]
[1732880731921,2.77941,3597.9,3597.3,2.85028485]
[1732880732120,2.77941,3597.9,3597.5,0.87995644]
[1732880732321,2.77941,3597.9,3597.5,0.8096]
[1732880732322,2.77959,3597.7,3597.5,0.8096]
[1732880732528,2.77959,3597.7,3597.6,0.07029724]
[1732880733143,3.32959,3597.7,3597.6,0.07029724]
[1732880733726,0.55,3597.8,3597.6,0.07029724]
[1732880733891,3.32955,3597.7,3597.6,0.07029724]
[1732880734086,0.55,3597.6,3597.3,0.7988]
[1732880736696,6.32948,3597.8,3597.3,0.7988]
[1732880737807,0.55,3597.8,3597.3,3.57866]
[1732880738127,0.55,3597.8,3597.3,3.57858]
[1732880738447,0.55,3597.8,3597.5,2.77965]
[1732880738588,3.7551,3598.2,3597.3,3.57858]
[1732880738589,0.55,3598.1,3597.6,0.788]
[1732880738791,1.48707661,3598.1,3597.6,0.788]
[1732880739424,4.26632661,3598.1,3597.6,0.788]
[1732880740022,0.55,3597.9,3597.6,0.788]
[1732880741825,0.55,3598.0,3597.6,0.788]
[1732880742210,1.47050345,3597.8,3597.6,0.788]
[1732880742412,0.55,3597.7,3597.6,0.788]
[1732880742817,0.55,3598.0,3597.6,0.788]
[1732880743032,0.55,3597.9,3597.6,0.788]
[1732880743426,0.55,3597.9,3597.7,0.07019708]
[1732880743817,5.77921,3598.2,3597.7,0.07019708]
[1732880743818,0.55,3598.1,3597.7,0.07019708]
[1732880744134,0.55,3597.8,3597.7,0.07019708]
[1732880744310,0.55,3598.1,3597.7,0.07019708]
[1732880744515,1.47050345,3598.3,3597.7,2.77949]
[1732880744710,0.55,3598.2,3597.6,0.788]
[1732880744910,0.55,3598.2,3597.8,2.84953726]
[1732880745122,2.02050345,3598.3,3597.8,2.77947]
[1732880745328,2.02050345,3598.3,3597.9,0.07000807]
[1732880746126,0.55,3598.1,3597.9,0.07000807]
[1732880746429,0.55,3598.1,3598.0,0.8275]
[1732880746724,0.55,3598.1,3598.0,0.89744888]
[1732880746925,0.55,3598.1,3598.0,0.76414888]
[1732880747356,1.47050345,3598.4,3598.0,3.54346888]
[1732880747515,0.55,3598.3,3598.0,3.54346888]
[1732880747711,0.55,3598.6,3598.0,3.47352]
[1732880747911,1.47050345,3598.3,3598.0,3.47352]
[1732880748237,0.55,3598.3,3598.1,2.8491197]
[1732880748448,51.372228,3598.2,3598.1,2.8491197]
[1732880748644,0.2,3600.3,3598.1,3.48138667]
[1732880748843,1.47050345,3598.8,3598.3,2.77908]
[1732880749024,1.47050345,3598.8,3598.4,2.779]
[1732880749218,2.77848,3599.1,3598.4,2.84860344]
[1732880749515,1.47050345,3598.8,3598.4,2.84860344]
[1732880749719,1.47050345,3598.8,3598.5,2.77892]